Workbook

Sheet GolfShot
C1: Wind: | D1: 1 | F1: Ball: | G1: PWR 1 | H1: =VLOOKUP(G1,M11:N16,2,FALSE) -> -3.27
F3: 0.1 | G3: 0.2 | H3: 0.3 | I3: 0.4 | K3: +10%
A4: Quarterback | B4: 100 | C4: 1.1 | D4: =(D1/C4)-(((D1/C4)/100)*H1) -> 0.9388181818 | F4: =D4+((D4/100)*10) -> 1.0327 | G4: =D4+((D4/100)*20) -> 1.126581818 | H4: =D4+((D4/100)*30) -> 1.220463636 | I4: =D4+((D4/100)*40) -> 1.314345455 | K4: =D4-((D4/100)*10) -> 0.8449363636
A5: mid | C5: 1.2 | D5: =(D1/C5)-(((D1/C5)/100)*H1) -> 0.8605833333 | F5: =D5+((D5/100)*10) -> 0.9466416667 | G5: =D5+((D5/100)*20) -> 1.0327 | H5: =D5+((D5/100)*30) -> 1.118758333 | I5: =D5+((D5/100)*40) -> 1.204816667 | K5: =D5-((D5/100)*10) -> 0.774525
A7: Xtra Mile | B7: 45 | C7: 2.14 | D7: =(D1/C7)-(((D1/C7)/100)*H1) -> 0.4825700935 | F7: =D7+((D7/100)*10) -> 0.5308271028 | G7: =D7+((D7/100)*20) -> 0.5790841121 | H7: =D7+((D7/100)*30) -> 0.6273411215 | I7: 0.6755981308 | K7: 0.4343130841
A8: mid | C8: 2.42 | D8: =(D1/C8)-(((D1/C8)/100)*H1) -> 0.4267355372 | F8: =D8+((D8/100)*10) -> 0.4694090909 | G8: =D8+((D8/100)*20) -> 0.5120826446 | H8: =D8+((D8/100)*30) -> 0.5547561983 | I8: 0.5974297521 | K8: 0.3840619835
P9: GOLFSHOT
A10: Sniper / Grizzly | B10: 100 | C10: 1.04 | D10: =(D1/C10)-(((D1/C10)/100)*H1) -> 0.9929807692 | F10: =D10+((D10/100)*10) -> 1.092278846 | G10: =D10+((D10/100)*20) -> 1.191576923 | H10: =D10+((D10/100)*30) -> 1.290875 | I10: 1.390173077 | K10: 0.8936826923 | M10: Power
A11: mid | C11: 1.18 | D11: =(D1/C11)-(((D1/C11)/100)*H1) -> 0.8751694915 | F11: =D11+((D11/100)*10) -> 0.9626864407 | G11: =D11+((D11/100)*20) -> 1.05020339 | H11: =D11+((D11/100)*30) -> 1.137720339 | I11: 1.225237288 | K11: 0.7876525424 | M11: PWR 0 | N11: 0
A12: min | C12: 1.34 | D12: =(D1/C12)-(((D1/C12)/100)*H1) -> 0.7706716418 | F12: =D12+((D12/100)*10) -> 0.847738806 | G12: =D12+((D12/100)*20) -> 0.9248059701 | H12: =D12+((D12/100)*30) -> 1.001873134 | I12: =D12+((D12/100)*40) -> 1.078940299 | K12: =D12-((D12/100)*10) -> 0.6936044776 | M12: PWR 1 | N12: -3.27
M13: PWR 2 | N13: -4.95
A14: Dawg | B14: 56 | C14: 1.88 | D14: =(D1/C14)-(((D1/C14)/100)*H1) -> 0.5493085106 | F14: =D14+((D14/100)*10) -> 0.6042393617 | G14: =D14+((D14/100)*20) -> 0.6591702128 | H14: =D14+((D14/100)*30) -> 0.7141010638 | I14: 0.7690319149 | K14: 0.4943776596 | M14: PWR 3 | N14: -6.66
A15: mid | C15: 2.42 | D15: =(D1/C15)-(((D1/C15)/100)*H1) -> 0.4267355372 | F15: =D15+((D15/100)*10) -> 0.4694090909 | G15: =D15+((D15/100)*20) -> 0.5120826446 | H15: =D15+((D15/100)*30) -> 0.5547561983 | I15: 0.5974297521 | K15: 0.3840619835 | M15: PWR 4 | N15: -10.17
M16: PWR 5 | N16: -12.15
A17: Guardian / Rocket | B17: 92 | C17: 1.24 | D17: =(D1/C17)-(((D1/C17)/100)*H1) -> 0.8328225806 | F17: =D17+((D17/100)*10) -> 0.9161048387 | G17: =D17+((D17/100)*20) -> 0.9993870968 | H17: =D17+((D17/100)*30) -> 1.082669355 | I17: 1.165951613 | K17: 0.7495403226
A18: mid | C18: 1.44 | D18: =(D1/C18)-(((D1/C18)/100)*H1) -> 0.7171527778 | F18: =D18+((D18/100)*10) -> 0.7888680556 | G18: =D18+((D18/100)*20) -> 0.8605833333 | H18: =D18+((D18/100)*30) -> 0.9322986111 | I18: 1.004013889 | K18: 0.6454375
A20: Thor | B20: 64 | C20: 1.8 | D20: =(D1/C20)-(((D1/C20)/100)*H1) -> 0.5737222222 | F20: =D20+((D20/100)*10) -> 0.6310944444 | G20: =D20+((D20/100)*20) -> 0.6884666667 | H20: =D20+((D20/100)*30) -> 0.7458388889 | I20: 0.8032111111 | K20: 0.51635
A21: mid | C21: 2.02 | D21: =(D1/C21)-(((D1/C21)/100)*H1) -> 0.5112376238 | F21: =D21+((D21/100)*10) -> 0.5623613861 | G21: =D21+((D21/100)*20) -> 0.6134851485 | H21: =D21+((D21/100)*30) -> 0.6646089109 | I21: 0.7157326733 | K21: 0.4601138614
A23: Thorn | B23: 57 | C23: 1.86 | D23: =(D1/C23)-(((D1/C23)/100)*H1) -> 0.5552150538 | F23: =D23+((D23/100)*10) -> 0.6107365591 | G23: =D23+((D23/100)*20) -> 0.6662580645 | H23: =D23+((D23/100)*30) -> 0.7217795699 | I23: 0.7773010753 | K23: 0.4996935484
A24: mid | C24: 2.48 | D24: =(D1/C24)-(((D1/C24)/100)*H1) -> 0.4164112903 | F24: =D24+((D24/100)*10) -> 0.4580524194 | G24: =D24+((D24/100)*20) -> 0.4996935484 | H24: =D24+((D24/100)*30) -> 0.5413346774 | I24: 0.5829758065 | K24: 0.3747701613
A25: short | C25: 3.72 | D25: =(D1/C25)-(((D1/C25)/100)*H1) -> 0.2776075269 | F25: =D25+((D25/100)*10) -> 0.3053682796 | G25: =D25+((D25/100)*20) -> 0.3331290323 | H25: =D25+((D25/100)*30) -> 0.3608897849 | I25: =D25+((D25/100)*40) -> 0.3886505376 | K25: =D25-((D25/100)*10) -> 0.2498467742
A27: Nirvana | B27: 97 | C27: 1.68 | D27: =(D1/C27)-(((D1/C27)/100)*H1) -> 0.614702381 | F27: =D27+((D27/100)*10) -> 0.676172619 | G27: =D27+((D27/100)*20) -> 0.7376428571 | H27: =D27+((D27/100)*30) -> 0.7991130952 | I27: 0.8605833333 | K27: 0.5532321429
A28: mid | C28: 3.38 | D28: =(D1/C28)-(((D1/C28)/100)*H1) -> 0.3055325444 | F28: =D28+((D28/100)*10) -> 0.3360857988 | G28: =D28+((D28/100)*20) -> 0.3666390533 | H28: =D28+((D28/100)*30) -> 0.3971923077 | I28: 0.4277455621 | K28: 0.2749792899
A29: min | C29: 6.06 | D29: =(D1/C29)-(((D1/C29)/100)*H1) -> 0.1704125413 | F29: =D29+((D29/100)*10) -> 0.1874537954 | G29: =D29+((D29/100)*20) -> 0.2044950495 | H29: =D29+((D29/100)*30) -> 0.2215363036 | I29: =D29+((D29/100)*40) -> 0.2385775578 | K29: =D29-((D29/100)*10) -> 0.1533712871
A31: Goliath | B31: 52 | C31: 1.96 | D31: =(D1/C31)-(((D1/C31)/100)*H1) -> 0.5268877551 | F31: =D31+((D31/100)*10) -> 0.5795765306 | G31: =D31+((D31/100)*20) -> 0.6322653061 | H31: =D31+((D31/100)*30) -> 0.6849540816 | I31: 0.7376428571 | K31: 0.4741989796
A32: mid | C32: 2.36 | D32: =(D1/C32)-(((D1/C32)/100)*H1) -> 0.4375847458 | F32: =D32+((D32/100)*10) -> 0.4813432203 | G32: =D32+((D32/100)*20) -> 0.5251016949 | H32: =D32+((D32/100)*30) -> 0.5688601695 | I32: 0.6126186441 | K32: 0.3938262712
A34: Malibu / Rock | B34: 96 | C34: 1.26 | D34: =(D1/C34)-(((D1/C34)/100)*H1) -> 0.8196031746 | F34: =D34+((D34/100)*10) -> 0.9015634921 | G34: =D34+((D34/100)*20) -> 0.9835238095 | H34: =D34+((D34/100)*30) -> 1.065484127 | I34: 1.147444444 | K34: 0.7376428571
A35: mid | C35: 2.54 | D35: =(D1/C35)-(((D1/C35)/100)*H1) -> 0.4065748031 | F35: =D35+((D35/100)*10) -> 0.4472322835 | G35: =D35+((D35/100)*20) -> 0.4878897638 | H35: =D35+((D35/100)*30) -> 0.5285472441 | I35: 0.5692047244 | K35: 0.3659173228
A36: min | C36: 5.06 | D36: =(D1/C36)-(((D1/C36)/100)*H1) -> 0.2040909091 | F36: =D36+((D36/100)*10) -> 0.2245 | G36: =D36+((D36/100)*20) -> 0.2449090909 | H36: =D36+((D36/100)*30) -> 0.2653181818 | I36: =D36+((D36/100)*40) -> 0.2857272727 | K36: =D36-((D36/100)*10) -> 0.1836818182
A38: Endbringer Guardian | B38: 79 | C38: 1.56 | D38: =(D1/C38)-(((D1/C38)/100)*H1) -> 0.6619871795 | F38: =D38+((D38/100)*10) -> 0.7281858974 | G38: =D38+((D38/100)*20) -> 0.7943846154 | H38: =D38+((D38/100)*30) -> 0.8605833333 | I38: 0.9267820513 | K38: 0.5957884615
A39: mid | C39: 3.12 | D39: =(D1/C39)-(((D1/C39)/100)*H1) -> 0.3309935897 | F39: =D39+((D39/100)*10) -> 0.3640929487 | G39: =D39+((D39/100)*20) -> 0.3971923077 | H39: =D39+((D39/100)*30) -> 0.4302916667 | I39: 0.4633910256 | K39: 0.2978942308
A40: min | C40: 5.94 | D40: =(D1/C40)-(((D1/C40)/100)*H1) -> 0.1738552189 | F40: =D40+((D40/100)*10) -> 0.1912407407 | G40: =D40+((D40/100)*20) -> 0.2086262626 | H40: =D40+((D40/100)*30) -> 0.2260117845 | I40: =D40+((D40/100)*40) -> 0.2433973064 | K40: =D40-((D40/100)*10) -> 0.156469697
A42: Topper / Apoc | B42: 34 | C42: 2.56 | D42: =(D1/C42)-(((D1/C42)/100)*H1) -> 0.4033984375 | F42: =D42+((D42/100)*10) -> 0.4437382812 | G42: =D42+((D42/100)*20) -> 0.484078125 | H42: =D42+((D42/100)*30) -> 0.5244179688 | I42: 0.5647578125 | K42: 0.3630585937
A43: mid | C43: 3.02 | D43: =(D1/C43)-(((D1/C43)/100)*H1) -> 0.3419536424 | F43: =D43+((D43/100)*10) -> 0.3761490066 | G43: =D43+((D43/100)*20) -> 0.4103443709 | H43: =D43+((D43/100)*30) -> 0.4445397351 | I43: 0.4787350993 | K43: 0.3077582781
A45: Goliath | B45: 52 | C45: 1.96 | D45: =(D1/C45)-(((D1/C45)/100)*H1) -> 0.5268877551 | F45: =D45+((D45/100)*10) -> 0.5795765306 | G45: =D45+((D45/100)*20) -> 0.6322653061 | H45: =D45+((D45/100)*30) -> 0.6849540816 | I45: 0.7376428571 | K45: 0.4741989796
A46: mid | C46: 2.36 | D46: =(D1/C46)-(((D1/C46)/100)*H1) -> 0.4375847458 | F46: =D46+((D46/100)*10) -> 0.4813432203 | G46: =D46+((D46/100)*20) -> 0.5251016949 | H46: =D46+((D46/100)*30) -> 0.5688601695 | I46: 0.6126186441 | K46: 0.3938262712
A48: Rocket Machete | B48: 90 | C48: 1.36 | D48: =(D1/C48)-(((D1/C48)/100)*H1) -> 0.7593382353 | F48: =D48+((D48/100)*10) -> 0.8352720588 | G48: =D48+((D48/100)*20) -> 0.9112058824 | H48: =D48+((D48/100)*30) -> 0.9871397059 | I48: 1.063073529 | K48: 0.6834044118
A49: mid | C49: 1.48 | D49: =(D1/C49)-(((D1/C49)/100)*H1) -> 0.6977702703 | F49: =D49+((D49/100)*10) -> 0.7675472973 | G49: =D49+((D49/100)*20) -> 0.8373243243 | H49: =D49+((D49/100)*30) -> 0.9071013514 | I49: 0.9768783784 | K49: 0.6279932432
A51: Gold iron | B51: 1.9 | C51: 1.9 | D51: =(D1/C51)-(((D1/C51)/100)*H1) -> 0.5435263158 | F51: =D51+((D51/100)*10) -> 0.5978789474 | G51: =D51+((D51/100)*20) -> 0.6522315789 | H51: =D51+((D51/100)*30) -> 0.7065842105 | I51: =D51+((D51/100)*40) -> 0.7609368421 | K51: 0.4891736842
A52: mid | C52: 2.16 | D52: =(D1/C52)-(((D1/C52)/100)*H1) -> 0.4781018519 | F52: =D52+((D52/100)*10) -> 0.525912037 | G52: =D52+((D52/100)*20) -> 0.5737222222 | H52: =D52+((D52/100)*30) -> 0.6215324074 | I52: 0.6693425926 | K52: 0.4302916667
A54: Rapier | B54: 72 | C54: 1.76 | D54: =(D1/C54)-(((D1/C54)/100)*H1) -> 0.5867613636 | F54: =D54+((D54/100)*10) -> 0.6454375 | G54: =D54+((D54/100)*20) -> 0.7041136364 | H54: =D54+((D54/100)*30) -> 0.7627897727 | I54: =D54+((D54/100)*40) -> 0.8214659091 | K54: 0.5280852273
A55: mid | C55: 3.52 | D55: =(D1/C55)-(((D1/C55)/100)*H1) -> 0.2933806818 | F55: =D55+((D55/100)*10) -> 0.32271875 | G55: =D55+((D55/100)*20) -> 0.3520568182 | H55: =D55+((D55/100)*30) -> 0.3813948864 | I55: 0.4107329545 | K55: 0.2640426136
A57: Gold Wood | B57: 2.14 | C57: 2.14 | D57: =(D1/C57)-(((D1/C57)/100)*H1) -> 0.4825700935 | F57: =D57+((D57/100)*10) -> 0.5308271028 | G57: =D57+((D57/100)*20) -> 0.5790841121 | H57: =D57+((D57/100)*30) -> 0.6273411215 | I57: =D57+((D57/100)*40) -> 0.6755981308 | K57: =D57-((D57/100)*10) -> 0.4343130841
A58: mid | C58: 2.36 | D58: =(D1/C58)-(((D1/C58)/100)*H1) -> 0.4375847458 | F58: =D58+((D58/100)*10) -> 0.4813432203 | G58: =D58+((D58/100)*20) -> 0.5251016949 | H58: =D58+((D58/100)*30) -> 0.5688601695 | I58: 0.6126186441 | K58: 0.3938262712

Sheet John
C1: Wind: | F1: Ball: | G1: PWR 1 | H1: =VLOOKUP(G1,M11:N15,2,FALSE) -> -3.27
F3: 0.1 | G3: 0.2 | H3: 0.3 | I3: 0.4 | K3: +10%
A4: Quarterback | B4: 100 | C4: 1.12 | D4: =(D1/C4)-(((D1/C4)/100)*H1) -> 0 | F4: =D4+((D4/100)*10) -> 0 | G4: =D4+((D4/100)*20) -> 0 | H4: =D4+((D4/100)*30) -> 0 | I4: =D4+((D4/100)*40) -> 0 | K4: =D4-((D4/100)*10) -> 0
C5: 1.22 | D5: =(D1/C5)-(((D1/C5)/100)*H1) -> 0 | F5: =D5+((D5/100)*10) -> 0 | G5: =D5+((D5/100)*20) -> 0 | H5: =D5+((D5/100)*30) -> 0 | I5: =D5+((D5/100)*40) -> 0 | K5: =D5-((D5/100)*10) -> 0
A7: Extra Mile | B7: 29 | C7: 2.6 | D7: =(D1/C7)-(((D1/C7)/100)*H1) -> 0 | F7: =D7+((D7/100)*10) -> 0 | G7: =D7+((D7/100)*20) -> 0 | H7: =D7+((D7/100)*30) -> 0 | I7: 0 | K7: 0
C8: 3.38 | D8: =(D1/C8)-(((D1/C8)/100)*H1) -> 0 | F8: =D8+((D8/100)*10) -> 0 | G8: =D8+((D8/100)*20) -> 0 | H8: =D8+((D8/100)*30) -> 0 | I8: 0 | K8: 0
P9: JOHN
A10: Horizon | B10: 12 | C10: 2.88 | D10: =(D1/C10)-(((D1/C10)/100)*H1) -> 0 | F10: =D10+((D10/100)*10) -> 0 | G10: =D10+((D10/100)*20) -> 0 | H10: =D10+((D10/100)*30) -> 0 | I10: 0 | K10: 0 | M10: Power
C11: 3.22 | D11: =(D1/C11)-(((D1/C11)/100)*H1) -> 0 | F11: =D11+((D11/100)*10) -> 0 | G11: =D11+((D11/100)*20) -> 0 | H11: =D11+((D11/100)*30) -> 0 | I11: 0 | K11: 0 | M11: PWR 0 | N11: 0
M12: PWR 1 | N12: -3.27
A13: Dawg / Topper | B13: 25 | C13: 2.5 | D13: =(D1/C13)-(((D1/C13)/100)*H1) -> 0 | F13: =D13+((D13/100)*10) -> 0 | G13: =D13+((D13/100)*20) -> 0 | H13: =D13+((D13/100)*30) -> 0 | I13: 0 | K13: 0 | M13: PWR 2 | N13: -4.95
C14: 2.9 | D14: =(D1/C14)-(((D1/C14)/100)*H1) -> 0 | F14: =D14+((D14/100)*10) -> 0 | G14: =D14+((D14/100)*20) -> 0 | H14: =D14+((D14/100)*30) -> 0 | I14: 0 | K14: 0 | M14: PWR 3 | N14: -6.66
M15: PWR 4 | N15: -10.17
A16: Sniper | B16: 100 | C16: 1.09 | D16: =(D1/C16)-(((D1/C16)/100)*H1) -> 0 | F16: =D16+((D16/100)*10) -> 0 | G16: =D16+((D16/100)*20) -> 0 | H16: =D16+((D16/100)*30) -> 0 | I16: 0 | K16: 0
C17: 1.2 | D17: =(D1/C17)-(((D1/C17)/100)*H1) -> 0 | F17: =D17+((D17/100)*10) -> 0 | G17: =D17+((D17/100)*20) -> 0 | H17: =D17+((D17/100)*30) -> 0 | I17: 0 | K17: 0
C18: 1.34 | D18: =(D1/C18)-(((D1/C18)/100)*H1) -> 0 | F18: =D18+((D18/100)*10) -> 0 | G18: =D18+((D18/100)*20) -> 0 | H18: =D18+((D18/100)*30) -> 0 | I18: =D18+((D18/100)*40) -> 0 | K18: =D18-((D18/100)*10) -> 0
A20: Backbone | B20: 76 | C20: 1.62 | D20: =(D1/C20)-(((D1/C20)/100)*H1) -> 0 | F20: =D20+((D20/100)*10) -> 0 | G20: =D20+((D20/100)*20) -> 0 | H20: =D20+((D20/100)*30) -> 0 | I20: 0 | K20: 0
C21: 1.88 | D21: =(D1/C21)-(((D1/C21)/100)*H1) -> 0 | F21: =D21+((D21/100)*10) -> 0 | G21: =D21+((D21/100)*20) -> 0 | H21: =D21+((D21/100)*30) -> 0 | I21: 0 | K21: 0
C22: 2.24 | D22: =(D1/C22)-(((D1/C22)/100)*H1) -> 0 | F22: =D22+((D22/100)*10) -> 0 | G22: =D22+((D22/100)*20) -> 0 | H22: =D22+((D22/100)*30) -> 0 | I22: =D22+((D22/100)*40) -> 0 | K22: =D22-((D22/100)*10) -> 0
A24: Thorn | B24: 43 | C24: 2.38 | D24: =(D1/C24)-(((D1/C24)/100)*H1) -> 0 | F24: =D24+((D24/100)*10) -> 0 | G24: =D24+((D24/100)*20) -> 0 | H24: =D24+((D24/100)*30) -> 0 | I24: =D24+((D24/100)*40) -> 0 | K24: =D24-((D24/100)*10) -> 0
C25: 2.6 | D25: =(D1/C25)-(((D1/C25)/100)*H1) -> 0 | F25: =D25+((D25/100)*10) -> 0 | G25: =D25+((D25/100)*20) -> 0 | H25: =D25+((D25/100)*30) -> 0 | I25: 0 | K25: =D25-((D25/100)*10) -> 0
C26: 4.28 | D26: =(D1/C26)-(((D1/C26)/100)*H1) -> 0 | F26: =D26+((D26/100)*10) -> 0 | G26: =D26+((D26/100)*20) -> 0 | H26: =D26+((D26/100)*30) -> 0 | I26: =D26+((D26/100)*40) -> 0 | K26: =D26-((D26/100)*10) -> 0
A28: Hornet | B28: 78 | C28: 1.64 | D28: =(D1/C28)-(((D1/C28)/100)*H1) -> 0 | F28: =D28+((D28/100)*10) -> 0 | G28: =D28+((D28/100)*20) -> 0 | H28: =D28+((D28/100)*30) -> 0 | I28: 0 | K28: 0
C29: 3.28 | D29: =(D1/C29)-(((D1/C29)/100)*H1) -> 0 | F29: =D29+((D29/100)*10) -> 0 | G29: =D29+((D29/100)*20) -> 0 | H29: =D29+((D29/100)*30) -> 0 | I29: 0 | K29: 0
A31: Firefly | B31: 48 | C31: 2.48 | D31: =(D1/C31)-(((D1/C31)/100)*H1) -> 0 | F31: =D31+((D31/100)*10) -> 0 | G31: =D31+((D31/100)*20) -> 0 | H31: =D31+((D31/100)*30) -> 0 | I31: 0 | K31: 0
C32: 4.96 | D32: =(D1/C32)-(((D1/C32)/100)*H1) -> 0 | F32: =D32+((D32/100)*10) -> 0 | G32: =D32+((D32/100)*20) -> 0 | H32: =D32+((D32/100)*30) -> 0 | I32: 0 | K32: 0
A34: Machete | B34: 80 | C34: 1.66 | D34: =(D1/C34)-(((D1/C34)/100)*H1) -> 0 | F34: =D34+((D34/100)*10) -> 0 | G34: =D34+((D34/100)*20) -> 0 | H34: =D34+((D34/100)*30) -> 0 | I34: 0 | K34: 0
C35: 7.7 | D35: =(D1/C35)-(((D1/C35)/100)*H1) -> 0 | F35: =D35+((D35/100)*10) -> 0 | G35: =D35+((D35/100)*20) -> 0 | H35: =D35+((D35/100)*30) -> 0 | I35: 0 | K35: 0
A37: Malibu Rocket | B37: 88 | C37: 1.7 | D37: =(D1/C37)-(((D1/C37)/100)*H1) -> 0 | F37: =D37+((D37/100)*10) -> 0 | G37: =D37+((D37/100)*20) -> 0 | H37: =D37+((D37/100)*30) -> 0 | I37: 0 | K37: 0
C38: 3.38 | D38: =(D1/C38)-(((D1/C38)/100)*H1) -> 0 | F38: =D38+((D38/100)*10) -> 0 | G38: =D38+((D38/100)*20) -> 0 | H38: =D38+((D38/100)*30) -> 0 | I38: 0 | K38: 0
A41: Viper / Saturn | B41: 51 | C41: 2.1 | D41: =(D1/C41)-(((D1/C41)/100)*H1) -> 0 | F41: =D41+((D41/100)*10) -> 0 | G41: =D41+((D41/100)*20) -> 0 | H41: =D41+((D41/100)*30) -> 0 | I41: =D41+((D41/100)*40) -> 0 | K41: 0
C42: 2.4 | D42: =(D1/C42)-(((D1/C42)/100)*H1) -> 0 | F42: =D42+((D42/100)*10) -> 0 | G42: =D42+((D42/100)*20) -> 0 | H42: =D42+((D42/100)*30) -> 0 | I42: 0 | K42: 0
A44: Goliath / junglist (ish) | B44: 34 | C44: 2.32 | D44: =(D1/C44)-(((D1/C44)/100)*H1) -> 0 | F44: =D44+((D44/100)*10) -> 0 | G44: =D44+((D44/100)*20) -> 0 | H44: =D44+((D44/100)*30) -> 0 | I44: =D44+((D44/100)*40) -> 0 | K44: =D44-((D44/100)*10) -> 0
C45: 2.8 | D45: =(D1/C45)-(((D1/C45)/100)*H1) -> 0 | F45: =D45+((D45/100)*10) -> 0 | G45: =D45+((D45/100)*20) -> 0 | H45: =D45+((D45/100)*30) -> 0 | I45: 0 | K45: 0
C46: 3.52 | D46: =(D1/C46)-(((D1/C46)/100)*H1) -> 0 | F46: =D46+((D46/100)*10) -> 0 | G46: =D46+((D46/100)*20) -> 0 | H46: =D46+((D46/100)*30) -> 0 | I46: =D46+((D46/100)*40) -> 0 | K46: =D46-((D46/100)*10) -> 0
